bitfinex/quotes_ETHUSD_20250324
["timestamp","ask_amount","ask_price","bid_price","bid_amount"]
[1742849818323,0.13404849,2087.7,2087.6,4.471]
[1742849818508,4.78953,2087.9,2087.6,4.471]
[1742849818675,0.13439111,2087.8,2087.6,13.65940656]
[1742849818876,9.57872,2088.0,2087.6,13.65940656]
[1742849819100,4.9242637,2087.9,2087.6,8.86930656]
[1742849820319,4.9242637,2087.9,2087.6,13.65944656]
[1742849820534,4.9242637,2087.9,2087.7,1.89281409]
[1742849823429,4.78953,2087.9,2087.7,1.89281409]
[1742849823918,0.13476411,2087.8,2087.7,1.89281409]
[1742849828503,4.78973,2087.8,2087.7,1.89281409]
[1742849828706,0.13476411,2087.8,2087.7,1.89281409]
[1742849831733,0.13476411,2087.8,2087.7,6.68277409]
[1742849832028,4.78935,2088.0,2087.7,6.68277409]
[1742849832233,0.13476411,2087.8,2087.7,6.68277409]
[1742849832436,4.78935,2088.0,2087.7,6.68277409]
[1742849832638,0.13476411,2087.8,2087.7,6.68277409]
[1742849832838,4.78935,2088.0,2087.7,6.68277409]
[1742849833041,0.13476411,2087.8,2087.7,6.68277409]
[1742849833529,4.78935,2088.0,2087.7,6.68277409]
[1742849833730,0.13476411,2087.8,2087.7,6.68277409]
[1742849833931,4.78935,2088.0,2087.7,6.68277409]
[1742849834107,0.13476411,2087.8,2087.7,6.68277409]
[1742849834317,4.78935,2088.0,2087.7,6.68277409]
[1742849834523,0.1351067,2087.9,2087.7,6.68277409]
[1742849836927,0.1351067,2087.9,2087.7,1.89281409]
[1742849837132,9.7143667,2087.9,2087.7,1.89281409]
[1742849838254,4.9247067,2087.9,2087.7,1.89281409]
[1742849838430,9.7143767,2087.9,2087.6,30.15414744]
[1742849838626,4.9247067,2087.9,2087.6,34.94429744]
[1742849838836,4.9247067,2087.9,2087.6,30.15414744]
[1742849839731,4.9247067,2087.9,2087.6,34.94423744]
[1742849840144,4.78996,2087.7,2087.6,25.317]
[1742849840344,4.7912,2087.2,2087.0,25.317]
[1742849840557,4.7912,2087.2,2087.1,4.47]
[1742849840852,4.79102,2087.3,2087.1,4.47]
[1742849841222,4.7911,2087.2,2087.1,4.47]
[1742849843323,0.7791,2087.4,2087.1,7.9638371]
[1742849843648,4.79053,2087.5,2087.1,12.7550871]
[1742849843843,4.79053,2087.5,2087.1,17.5462671]
[1742849844052,4.79053,2087.5,2087.1,12.7550171]
[1742849844239,4.79053,2087.5,2087.1,18.8750171]
[1742849844439,4.79073,2087.4,2087.2,2.43113611]
[1742849844650,4.79073,2087.4,2087.1,10.59]
[1742849844962,0.7941,2087.5,2087.2,4.47]
[1742849845161,4.7911,2087.2,2087.1,6.12]
[1742849845360,4.7911,2087.2,2087.1,10.59]
[1742849845361,5.5872,2087.2,2087.1,10.59]
[1742849846131,4.79133,2087.1,2087.0,25.317]
[1742849846351,4.79133,2087.1,2087.0,29.787]
[1742849847048,4.79133,2087.1,2087.0,25.317]
[1742849847248,4.79202,2086.8,2086.7,6.12]
[1742849847448,4.79202,2086.8,2086.7,10.59]
[1742849847758,4.79169,2087.0,2086.7,11.56430216]
[1742849847968,4.79169,2087.0,2086.7,10.59]
[1742849848143,4.79169,2087.0,2086.7,15.17460872]
[1742849848346,0.11706492,2086.9,2086.7,15.17460872]
[1742849849053,4.90888492,2086.9,2086.7,15.17460872]
[1742849849255,9.70087492,2086.9,2086.7,10.59]
[1742849849636,4.79202,2086.8,2086.7,10.59]
[1742849849836,4.90874192,2086.8,2086.7,10.59]
[1742849850363,4.90874192,2086.8,2086.7,6.12]
[1742849850574,4.90874192,2086.8,2086.7,10.591]
[1742849853250,4.90874192,2086.8,2086.7,6.12]
[1742849853460,4.90874192,2086.8,2086.7,10.591]
[1742849855973,4.90874192,2086.8,2086.7,4.471]
[1742849862603,4.90874192,2086.8,2086.7,7.58366724]
[1742849862604,0.11672192,2086.8,2086.7,7.58366724]
[1742849862882,4.79149,2087.1,2086.7,12.42383194]
[1742849863045,4.79149,2087.1,2086.7,12.37591724]
[1742849863252,4.90600604,2087.0,2086.7,12.37591724]
[1742849864881,9.69776604,2087.0,2086.7,7.58366724]
[1742849865049,4.79191,2086.9,2086.7,7.58366724]
[1742849865252,0.10196099,2086.8,2086.7,4.471]
[1742849866002,4.79217,2086.8,2086.7,4.471]
[1742849866152,4.89337852,2086.8,2086.7,4.471]
[1742849875303,4.89337852,2086.8,2086.6,25.32]
[1742849875304,4.79225,2086.7,2086.6,25.32]
[1742849875461,4.79225,2086.7,2086.6,29.791]
[1742849875681,4.89260669,2086.7,2086.6,29.791]
[1742849876497,5.69830669,2086.7,2086.6,29.791]
[1742849877062,5.69830669,2086.7,2086.6,25.32]
[1742849877280,5.69830669,2086.7,2086.6,29.791]
[1742849877485,7.22654236,2086.7,2086.6,29.791]
[1742849878374,7.22654236,2086.7,2086.6,4.471]
[1742849879503,5.69830669,2086.7,2086.6,4.471]
[1742849879966,0.10035669,2086.7,2086.6,4.471]
[1742849880458,4.89203663,2086.7,2086.6,4.471]
[1742849889891,4.79225,2086.7,2086.6,4.471]
[1742849890090,4.8911964,2086.7,2086.6,4.471]
[1742849890810,0.0989464,2086.7,2086.6,9.71058]
[1742849891176,4.79157,2087.0,2086.6,14.50284]
[1742849891492,4.79157,2087.0,2086.6,9.71046]
[1742849891678,0.0908201,2086.9,2086.6,4.471]
[1742849891883,4.79192,2086.9,2086.6,4.471]
[1742849892776,4.79192,2086.9,2086.6,29.802]
[1742849895069,0.09084004,2086.8,2086.6,29.802]
[1742849899017,4.88287004,2086.8,2086.6,29.802]
[1742849899229,5.759729,2086.7,2086.6,25.331]
[1742849899386,6.548829,2086.7,2086.6,29.802]
[1742849899809,6.6401069,2086.7,2086.6,29.802]
[1742849904623,5.6726279,2086.7,2086.6,29.802]
[1742849904821,5.58135,2086.7,2086.6,29.802]
[1742849905581,4.79203,2086.8,2086.6,29.802]
[1742849907384,4.79225,2086.7,2086.6,29.802]
[1742849907724,4.79203,2086.8,2086.6,29.802]
[1742849907929,9.58426,2086.8,2086.6,29.802]
[1742849908831,4.79203,2086.8,2086.6,29.802]
[1742849910445,4.79225,2086.7,2086.6,29.802]
[1742849911917,4.79225,2086.7,2086.6,4.471]
[1742849916946,4.79203,2086.8,2086.6,4.471]
[1742849917252,9.58419,2086.8,2086.6,4.471]
[1742849917460,4.79213,2086.8,2086.6,4.471]
[1742849917948,9.58436,2086.8,2086.6,4.471]
[1742849918242,4.79213,2086.8,2086.6,4.471]
[1742849919355,9.58433,2086.8,2086.6,4.471]
[1742849920335,4.79213,2086.8,2086.6,4.471]
[1742849920544,4.79225,2086.7,2086.6,4.471]
[1742849923656,5.59485,2086.7,2086.6,4.471]
[1742849923840,4.79225,2086.7,2086.6,4.471]
[1742849924156,4.79207,2086.8,2086.6,4.471]
[1742849924659,4.79148,2087.1,2086.6,9.26334]
[1742849924862,3.0,2087.0,2086.6,12.24354]
[1742849925238,0.8044,2087.2,2086.7,4.84015856]
[1742849925449,4.79122,2087.2,2086.8,4.7919]
[1742849925635,9.58252,2087.2,2086.7,10.91224]
[1742849925954,4.79133,2087.1,2086.7,13.85701321]
[1742849927059,4.79124,2087.2,2086.7,13.85690321]
[1742849927261,9.58253,2087.2,2086.7,13.85690321]
[1742849927641,4.79134,2087.1,2086.7,13.85690321]
[1742849928461,4.79134,2087.1,2086.7,18.64899321]
[1742849928662,4.79124,2087.2,2086.8,7.10398932]
[1742849929249,5.59513,2087.4,2086.9,4.79175]
[1742849929452,4.79047,2087.5,2087.1,4.79133]
[1742849929635,9.5811,2087.5,2087.2,4.950133]
[1742849929961,4.79047,2087.5,2087.2,4.950133]
[1742849930732,0.7951,2087.6,2087.3,4.471]
[1742849930938,7.79064,2087.4,2087.3,4.471]
[1742849931337,8.60994,2087.4,2087.3,4.471]
[1742849933633,4.79019,2087.6,2087.3,4.471]
[1742849933872,4.79064,2087.4,2087.3,4.9181]
[1742849934032,4.79064,2087.4,2087.3,4.471]
[1742849934447,4.79064,2087.4,2086.5,28.331]
[1742849934448,4.7913,2087.2,2087.1,4.472]
[1742849934664,0.7629,2087.2,2086.5,25.331]
[1742849934964,4.79244,2086.7,2086.6,4.484]
[1742849935348,4.79158,2087.0,2086.6,4.484]
[1742849935548,4.79189,2086.9,2086.6,7.944756]
[1742849935735,4.79202,2086.8,2086.6,7.944756]
[1742849936137,4.79189,2086.9,2086.6,7.944756]
[1742849936371,9.58389,2086.9,2086.6,7.944756]
[1742849936550,4.79189,2086.9,2086.6,7.944756]
[1742849937262,9.58387,2086.9,2086.6,7.944756]
[1742849937439,4.79189,2086.9,2086.6,7.944756]
[1742849937777,4.79189,2086.9,2086.6,7.99267607]
[1742849937951,4.79189,2086.9,2086.6,7.944756]
[1742849938770,9.58387,2086.9,2086.6,7.944756]
[1742849939671,4.79189,2086.9,2086.6,7.944756]
[1742849939879,4.7921,2086.8,2086.6,7.944756]
[1742849940471,4.79189,2086.9,2086.6,7.944756]
[1742849940674,9.58388,2086.9,2086.6,7.944756]
[1742849940837,4.79205,2086.8,2086.6,7.944756]
[1742849941037,4.79205,2086.8,2086.6,4.484]
[1742849941471,4.79226,2086.7,2086.5,25.68388532]
[1742849941673,4.79212,2086.8,2086.6,4.485]
[1742849942160,9.58434,2086.8,2086.6,4.485]
[1742849942574,4.79225,2086.7,2086.6,4.485]
[1742849943288,4.79182,2086.9,2086.6,7.4666]
[1742849943470,3.0,2087.1,2086.6,7.4666]
[1742849943639,4.79135,2087.1,2086.7,4.79214]
[1742849943837,4.79121,2087.2,2086.7,9.58417]
[1742849944053,4.79121,2087.2,2086.8,4.79198]
[1742849944282,4.79134,2087.1,2086.9,1.570401]
[1742849945045,9.58248,2087.2,2086.9,1.570401]
[1742849945455,4.79135,2087.1,2086.9,1.570401]
[1742849947379,4.79121,2087.2,2086.9,1.570401]
[1742849947685,9.58251,2087.2,2086.9,1.570401]
[1742849948184,4.79121,2087.2,2086.9,26.899401]
[1742849948477,5.5854,2087.4,2087.0,1.37297221]
[1742849948665,4.79103,2087.3,2087.1,4.488]
[1742849951759,5.5854,2087.4,2087.1,4.488]
[1742849951964,4.79043,2087.5,2087.1,4.488]
[1742849952276,4.79043,2087.5,2087.2,1.06524122]
[1742849952887,4.79066,2087.4,2087.2,1.06524122]
[1742849953073,4.79043,2087.5,2087.2,1.06524122]
[1742849958690,4.78954,2087.9,2087.4,4.79043]
[1742849958983,4.78954,2087.9,2087.5,0.479043]
[1742849959157,4.78954,2087.9,2087.6,4.483]
[1742849959359,4.7895,2087.9,2087.6,4.483]
[1742849961084,0.7917,2088.0,2087.6,4.483]
[1742849961285,10.37067,2088.0,2087.6,4.483]
[1742849961488,10.37067,2088.0,2087.6,6.5492993]
[1742849962587,4.78952,2087.9,2087.6,6.5492993]
[1742849967394,4.78952,2087.9,2087.6,31.8712993]
[1742849980674,9.57918,2087.9,2087.6,31.8712993]
[1742849980874,4.78952,2087.9,2087.6,29.805]
[1742849982604,9.5792,2087.9,2087.6,29.805]
[1742849982806,4.78952,2087.9,2087.6,29.805]
[1742849992520,5.581,2088.0,2087.6,29.805]
[1742849992714,11.87550309,2088.9,2087.8,4.78962]
[1742849992913,0.8101,2088.4,2087.8,4.78962]
[1742849993099,4.7888,2088.3,2087.8,4.78956]
[1742849993483,4.78876,2088.3,2087.8,4.78956]
[1742849993685,4.78891,2088.2,2087.9,0.957951]
[1742849993883,4.78891,2088.2,2087.8,4.78956]
[1742849994614,4.78891,2088.2,2087.7,4.78987]
[1742849994810,9.57792,2088.2,2087.7,4.78987]
[1742849995404,10.34355,2088.1,2087.8,4.469]
[1742849995614,5.55435,2088.1,2087.8,4.469]
[1742849996312,4.7893,2088.0,2087.6,31.442]
[1742849996516,4.78962,2087.9,2087.7,4.468]
[1742849998683,4.78962,2087.9,2087.6,25.322]
[1742849998890,4.78977,2087.8,2087.7,4.468]
[1742849999090,9.57931,2087.9,2087.7,4.468]
[1742849999525,4.78961,2087.9,2087.7,4.468]
[1742850000099,9.57932,2087.9,2087.7,4.468]
[1742850000295,4.78973,2087.8,2087.7,4.468]
[1742850002523,4.78956,2087.9,2087.7,4.468]
[1742850003095,4.78956,2087.9,2087.7,3.68593216]
[1742850003800,4.78929,2088.0,2087.7,3.68593216]
[1742850004396,4.78905,2088.1,2087.8,4.479]
[1742850004932,4.78932,2088.0,2087.8,4.479]
[1742850005100,0.8282,2087.6,2086.8,6.10363624]
[1742850005303,4.79202,2086.8,2086.7,6.10363624]
[1742850005499,0.8282,2087.4,2086.9,4.79167]
[1742850005709,4.79097,2087.3,2086.8,10.89565624]
[1742850005909,0.8282,2087.0,2086.8,6.10363624]
[1742850006134,5.62114,2086.4,2086.3,25.317]
[1742850006431,0.8282,2086.6,2086.3,29.805]
[1742850006632,4.79278,2086.5,2086.3,29.805]
[1742850006820,4.79294,2086.4,2086.3,25.317]
[1742850007000,4.79403,2086.0,2085.8,4.493]
[1742850007200,4.79409,2085.9,2085.8,4.493]
[1742850007630,5.59839,2085.9,2085.8,4.493]
[1742850007832,4.79457,2085.7,2085.4,25.321]
[1742850008034,4.79457,2085.7,2085.2,0.35899033]
[1742850008234,4.79493,2085.6,2085.3,4.499]
[1742850008401,6.637642,2085.9,2085.2,26.27792402]
[1742850008608,4.79547,2085.3,2085.2,25.321]
[1742850008812,4.79593,2085.1,2085.0,20.0]
[1742850009011,8.61383,2085.1,2085.0,20.0]
[1742850009423,5.61383,2085.1,2085.0,20.0]
[1742850009620,9.16383,2085.1,2084.3,5.12061242]
[1742850009823,0.7969,2085.2,2084.5,4.79709]
[1742850010124,0.7969,2085.5,2085.0,4.79594]
[1742850010435,4.79616,2085.0,2084.7,6.10363624]
[1742850010622,5.57012,2084.8,2084.7,4.541]
[1742850010826,0.7735,2085.1,2084.7,4.541]
[1742850011005,4.79561,2085.3,2084.8,3.0]
[1742850011205,0.55,2085.1,2084.4,6.10363624]
[1742850011516,5.57043,2084.7,2084.3,0.095912]
[1742850011713,4.79722,2084.6,2084.4,4.564]
[1742850012022,4.79719,2084.6,2084.4,4.566]
[1742850012214,4.79708,2084.6,2084.3,0.095912]
[1742850012534,0.7735,2084.7,2084.3,0.095912]
[1742850012736,0.7548,2085.3,2084.6,4.79695]
[1742850012938,0.7548,2085.6,2085.2,4.79565]
[1742850013114,1.794042,2085.9,2085.5,4.79491]
[1742850013312,0.7548,2086.2,2085.7,4.79439]
[1742850013512,0.7548,2086.2,2085.8,4.58]
[1742850013714,0.7548,2086.2,2085.9,4.585]
[1742850014336,0.7548,2086.2,2085.7,4.79436]
[1742850014608,4.79371,2086.1,2085.8,4.584]
[1742850014833,0.7548,2086.2,2085.8,4.584]
[1742850015033,3.42240121,2086.3,2085.9,6.34229362]
[1742850015704,10.34044,2086.5,2085.9,6.34229362]
[1742850015903,4.79238,2086.7,2086.1,7.79343]
[1742850016130,4.79238,2086.7,2086.1,33.13343]
[1742850016730,4.79252,2086.6,2086.1,33.13343]
[1742850016928,4.79252,2086.6,2086.1,28.34]
[1742850017311,4.79252,2086.6,2086.1,33.13351]
[1742850017836,5.62407,2086.8,2086.2,4.79338]
[1742850018141,10.41631,2086.8,2086.3,4.592]
[1742850018541,4.79232,2086.7,2086.3,4.592]
[1742850019128,9.58477,2086.7,2086.3,4.592]
[1742850019325,4.79232,2086.7,2086.3,4.592]
[1742850021039,4.79267,2086.6,2086.3,4.592]
[1742850022854,4.7923,2086.7,2086.3,4.592]
[1742850023734,1.041624,2086.7,2086.3,4.592]
[1742850023933,4.79294,2086.4,2086.3,4.592]
[1742850024312,4.79277,2086.5,2086.3,4.592]
[1742850025341,4.7934,2086.2,2086.1,25.34]
[1742850025641,4.7934,2086.2,2086.1,29.921]
[1742850029418,4.79317,2086.3,2086.1,29.921]
[1742850029659,4.79294,2086.4,2086.1,29.921]
[1742850029947,4.79284,2086.5,2086.1,33.3925]
[1742850030119,4.79284,2086.5,2086.1,29.921]
[1742850030650,9.58575,2086.5,2086.1,29.921]
[1742850030951,4.79251,2086.6,2086.1,34.71456]
[1742850031122,9.58569,2086.5,2086.1,29.921]
[1742850031325,4.79281,2086.5,2086.1,29.921]
[1742850031724,4.79281,2086.5,2086.1,33.871877]
[1742850031954,4.79177,2087.0,2086.1,33.871877]
[1742850031955,4.79174,2087.0,2086.3,4.79314]
[1742850032254,0.804,2087.1,2086.2,0.04793178]
[1742850032255,4.79224,2086.8,2086.2,7.79333]
[1742850032461,4.79224,2086.8,2086.3,4.79306]
[1742850032758,4.79221,2086.8,2086.3,4.79306]
[1742850032929,4.79221,2086.8,2086.3,11.56018621]
[1742850033135,4.79186,2086.9,2086.4,4.84080509]
[1742850033347,4.79186,2086.9,2086.4,4.79288]
[1742850033555,4.79218,2086.8,2086.3,6.76712621]
[1742850033757,9.58437,2086.8,2086.3,6.76712621]
[1742850034047,4.79257,2086.6,2086.2,3.0]
[1742850034247,4.79257,2086.6,2086.3,4.58]
[1742850038165,4.79276,2086.5,2086.3,4.58]
[1742850038957,4.79257,2086.6,2086.3,4.58]
[1742850041686,4.79225,2086.7,2086.3,4.58]
[1742850042579,9.5847,2086.7,2086.3,4.58]
[1742850043072,4.79225,2086.7,2086.3,4.58]
[1742850044471,4.7925,2086.6,2086.3,4.58]
[1742850044694,0.479225,2086.7,2086.3,4.58]
[1742850044851,4.79272,2086.5,2086.3,4.58]
[1742850045747,4.79256,2086.6,2086.3,4.58]
[1742850049085,9.58525,2086.6,2086.3,4.58]
[1742850049252,4.79256,2086.6,2086.3,4.58]
[1742850051054,9.58439,2086.8,2086.3,4.58]
[1742850051257,5.750829,2086.7,2086.3,4.58]
[1742850051502,4.79256,2086.6,2086.3,4.58]
[1742850055390,9.5852,2086.6,2086.3,4.58]
[1742850055592,4.79256,2086.6,2086.3,4.58]
[1742850057165,9.58521,2086.6,2086.3,4.58]
[1742850057362,5.9225549,2086.6,2086.3,4.58]
[1742850059899,1.1299949,2086.6,2086.3,4.58]
[1742850060080,0.7905,2086.9,2086.5,0.7644]
[1742850060282,4.79082,2087.4,2086.9,4.79179]
[1742850060283,0.7905,2087.3,2086.9,4.79179]
[1742850060504,0.7905,2087.3,2087.0,4.548]
[1742850060703,9.58151,2087.4,2087.0,4.548]
[1742850060995,4.79088,2087.3,2087.0,4.548]
[1742850061196,9.58193,2087.3,2087.0,4.548]
[1742850061500,4.79133,2087.1,2087.0,4.548]
[1742850062200,5.34133,2087.1,2087.0,0.44868956]
[1742850062401,9.11633,2087.1,2087.0,8.1e-07]
[1742850062576,11.02263207,2087.1,2087.0,8.1e-07]
[1742850063510,6.11702,2086.8,2086.7,4.552]
[1742850071103,5.56702,2086.8,2086.7,4.552]
[1742850074293,4.79202,2086.8,2086.7,4.552]
[1742850074696,4.79192,2086.9,2086.7,4.552]
[1742850075114,9.58391,2086.9,2086.7,4.552]
[1742850075419,4.79192,2086.9,2086.7,4.552]
[1742850076218,4.79112,2087.2,2086.7,15.15124]
[1742850076421,4.79112,2087.2,2086.8,0.8031]
[1742850077199,9.58239,2087.2,2086.8,0.8031]
[1742850077389,4.79139,2087.1,2086.8,0.8031]
[1742850079635,9.5824,2087.2,2086.8,0.8031]
[1742850079933,4.79136,2087.1,2086.8,0.8031]
[1742850082136,9.58287,2087.1,2086.8,0.8031]
[1742850082637,4.79115,2087.2,2086.8,0.8031]
[1742850083338,9.58243,2087.2,2086.8,0.8031]
[1742850083524,4.79136,2087.1,2086.8,0.8031]
[1742850084441,4.79115,2087.2,2086.8,0.8031]
[1742850084606,9.58242,2087.2,2086.8,0.8031]
[1742850084934,4.79115,2087.2,2086.8,0.8031]
[1742850085109,9.5824,2087.2,2086.8,0.8031]
[1742850085311,4.79135,2087.1,2086.8,0.8031]
[1742850085739,4.79202,2086.8,2086.7,25.333]
[1742850086038,5.34202,2086.8,2086.7,29.863]
[1742850086841,4.79202,2086.8,2086.7,29.863]
[1742850087625,4.79202,2086.8,2086.7,4.53]
[1742850087825,6.307948,2086.8,2086.7,4.53]
[1742850088943,6.857948,2086.8,2086.7,4.53]
[1742850089813,4.79294,2086.4,2086.3,6.12]
[1742850090013,4.79294,2086.4,2086.3,10.652]
[1742850091353,4.79317,2086.3,2086.2,29.86]
[1742850097167,4.79317,2086.3,2086.2,4.53]
[1742850097744,4.79409,2085.9,2085.7,26.26998279]
[1742850097975,4.79432,2085.8,2085.7,26.26998279]
[1742850098164,4.79432,2085.8,2085.7,30.80798279]
[1742850100376,4.79432,2085.8,2085.7,29.872]
[1742850100575,4.79498,2085.6,2085.4,0.7926]
[1742850100774,4.79498,2085.6,2085.5,4.536]
[1742850101678,4.79498,2085.6,2085.5,5.5030376]
[1742850104485,4.79418,2085.9,2085.5,5.5030376]
[1742850104848,4.79437,2085.8,2085.5,5.5030376]
[1742850105279,4.79437,2085.8,2085.5,11.6230376]
[1742850105653,4.79418,2085.9,2085.5,11.6230376]
[1742850105869,9.58845,2085.9,2085.5,11.6230376]
[1742850106378,4.79433,2085.8,2085.5,11.6230376]
[1742850106785,9.58882,2085.8,2085.5,11.6230376]
[1742850106975,4.79433,2085.8,2085.5,11.6230376]
[1742850108392,9.58881,2085.8,2085.5,11.6230376]
[1742850108564,4.79433,2085.8,2085.5,11.6230376]
[1742850110189,4.79412,2085.9,2085.5,11.6230376]
[1742850110489,9.58837,2085.9,2085.5,16.4180176]
[1742850110693,4.79438,2085.8,2085.5,11.6230376]
[1742850112693,9.58886,2085.8,2085.5,11.6230376]
[1742850113894,4.79417,2085.9,2085.5,11.6230376]
[1742850114075,4.79417,2085.9,2085.5,16.4180376]
[1742850114394,4.79417,2085.9,2085.6,0.8161]
[1742850114986,0.7964,2086.3,2085.6,6.9361]
[1742850115172,5.56001,2086.5,2086.0,4.79376]
[1742850115379,4.79248,2086.6,2086.1,10.13013]
[1742850115690,5.5606,2086.2,2086.1,6.12]
[1742850115892,5.5606,2086.2,2086.1,10.658]
[1742850116683,4.79324,2086.3,2086.1,10.658]
[1742850117092,9.58663,2086.3,2086.1,10.658]
[1742850117684,4.7934,2086.2,2086.1,10.658]
[1742850118094,4.79324,2086.3,2086.1,10.658]
[1742850118807,4.79299,2086.4,2086.1,10.658]
[1742850119175,4.79318,2086.3,2086.1,10.658]
[1742850119376,9.58608,2086.4,2086.1,10.658]
[1742850119587,4.7932,2086.3,2086.1,10.658]
[1742850119783,4.7932,2086.3,2086.1,4.538]
[1742850120910,4.79262,2086.6,2086.1,11.05327641]
[1742850121096,9.58533,2086.6,2086.1,11.05327641]
[1742850121489,4.79277,2086.5,2086.1,6.25973641]
[1742850123011,4.79279,2086.5,2086.1,6.25973641]
[1742850123217,4.79279,2086.5,2086.1,4.538]
[1742850123831,4.79279,2086.5,2086.1,9.33162]
[1742850125202,5.55136,2086.7,2086.3,4.79315]
[1742850125400,4.79257,2086.6,2086.4,0.7765]
[1742850126483,9.58527,2086.6,2086.4,0.7765]
[1742850126914,4.79257,2086.6,2086.4,0.7765]
[1742850127916,1.3693,2086.9,2086.4,0.7765]
[1742850127917,4.79211,2086.8,2086.4,0.7765]
[1742850128640,4.79211,2086.8,2086.4,5.5694]
[1742850128997,4.79211,2086.8,2086.4,7.217648]
[1742850129201,4.7918,2086.9,2086.4,12.05836217]
[1742850129402,9.58335,2087.0,2086.5,4.79256]
[1742850129609,4.79157,2087.0,2086.6,4.531]
[1742850129814,4.79157,2087.0,2086.6,10.651]
[1742850130220,4.79157,2087.0,2086.6,15.44347]
[1742850130836,4.79157,2087.0,2086.7,0.8067]
[1742850132203,4.79179,2086.9,2086.7,0.8067]
[1742850132830,4.79225,2086.7,2086.6,10.651]
[1742850133934,4.79279,2086.5,2086.3,31.454]
[1742850134104,4.79279,2086.5,2086.4,4.541]
[1742850137036,5.34279,2086.5,2086.4,4.541]
[1742850140036,5.34294,2086.4,2086.3,25.334]
[1742850140336,6.971444,2086.4,2086.3,29.869]
[1742850140538,5.34294,2086.4,2086.3,29.869]
[1742850140923,4.79294,2086.4,2086.3,29.869]
[1742850142946,4.79294,2086.4,2086.3,4.535]
[1742850147230,4.7933,2086.3,2086.1,6.12]
[1742850147429,4.79386,2086.0,2085.9,31.455]
[1742850147643,4.79386,2086.0,2085.9,35.991]
[1742850149140,4.79386,2086.0,2085.9,29.872]
[1742850153984,6.16326,2086.0,2085.9,25.335]
[1742850154148,4.79547,2085.3,2085.1,6.12]
[1742850154474,4.79547,2085.3,2085.2,4.542]
[1742850154786,4.79605,2085.1,2084.9,6.12]
[1742850154994,4.79605,2085.1,2085.0,4.542]
[1742850156047,5.61545,2085.1,2085.0,4.542]
[1742850156236,4.79605,2085.1,2085.0,4.542]
[1742850156654,4.79616,2085.0,2084.9,6.12]
[1742850156939,4.79616,2085.0,2084.7,25.338]
[1742850156940,4.79662,2084.8,2084.7,25.338]
[1742850159170,4.79647,2084.9,2084.7,25.338]
[1742850159457,4.79627,2085.0,2084.7,25.338]
[1742850159773,4.79604,2085.1,2084.8,0.8233]
[1742850160335,9.59214,2085.1,2084.8,0.8233]
[1742850160538,4.79604,2085.1,2084.8,0.8233]
[1742850161181,0.8194,2085.3,2084.8,5.46533]
[1742850161373,4.79549,2085.3,2084.8,16.42970182]
[1742850161541,4.79572,2085.2,2084.8,11.58533]
[1742850162165,4.79572,2085.2,2084.8,16.38195]
[1742850162368,4.79579,2085.2,2084.8,11.58533]
[1742850163475,9.59166,2085.2,2084.8,11.58533]
[1742850163644,4.79639,2084.9,2084.8,6.12]
[1742850163963,4.79639,2084.9,2084.8,10.666]
[1742850166853,4.79639,2084.9,2084.8,4.546]
[1742850167680,5.34639,2084.9,2084.8,4.546]
[1742850169375,6.42797159,2084.9,2084.8,4.546]
[1742850169770,5.34662,2084.8,2084.7,25.338]
[1742850169975,6.15902,2084.8,2084.7,29.886]
[1742850170785,9.15902,2084.8,2084.7,29.887]
[1742850174801,9.15902,2084.8,2084.7,4.549]
[1742850178073,8.34662,2084.8,2084.7,4.549]
[1742850179003,4.79598,2085.1,2084.7,4.549]
[1742850179172,9.5921,2085.1,2084.8,0.7784]
[1742850179368,4.79616,2085.0,2084.8,0.7784]
[1742850180688,9.59253,2085.0,2084.8,0.7784]
[1742850181079,4.79616,2085.0,2084.8,0.7784]
[1742850181878,9.5925,2085.0,2084.8,0.7784]
[1742850182073,4.79616,2085.0,2084.8,0.7784]
[1742850182295,4.79574,2085.2,2084.8,2.0243831]
[1742850182477,5.34606,2085.1,2084.8,2.0243831]
[1742850183188,10.14217,2085.1,2084.8,2.0243831]
[1742850183387,5.34606,2085.1,2084.8,2.0243831]
[1742850186725,0.55,2085.1,2084.8,2.0243831]
[1742850186929,5.34601,2085.1,2084.8,2.0243831]
[1742850187585,0.55,2085.1,2084.8,2.0243831]
[1742850187785,0.55,2085.1,2084.9,2.42443969]
[1742850188386,5.34595,2085.1,2084.9,2.42443969]
[1742850188586,0.55,2085.1,2084.9,2.42443969]
[1742850188787,5.34595,2085.1,2084.9,2.42443969]
[1742850189290,0.55,2085.1,2084.9,2.42443969]
[1742850189515,4.79524,2085.4,2085.0,0.44488228]
[1742850189824,0.55,2085.3,2085.0,0.44488228]
[1742850190612,5.34556,2085.3,2085.0,0.44488228]
[1742850191209,4.79571,2085.2,2085.0,0.44488228]
[1742850192013,5.34556,2085.3,2084.9,8.54443969]
[1742850192190,4.79581,2085.2,2084.9,8.54443969]
[1742850194310,4.79616,2085.0,2084.9,6.12]
[1742850194511,4.79616,2085.0,2084.9,10.647]
[1742850194882,9.17366,2085.0,2084.9,10.647]
[1742850196115,9.17366,2085.0,2084.9,4.527]
[1742850198325,11.050199,2085.0,2084.9,4.527]
[1742850204999,4.79706,2084.7,2084.4,6.9248]
[1742850205237,4.79731,2084.5,2084.4,6.12]